fUSD/lending_fUSD_20251025
["ID","MTS","AMOUNT","RATE_DAILY","PERIOD"]
[392336944,1761359439593,-3645.5959239,0.00037977,2]
[392336946,1761359439604,-1445.52786979,0.00037977,2]
[392336955,1761359439706,-16566.93012337,0.00037977,2]
[392336956,1761359439717,-13758.1514566,0.0003799,3]
[392336957,1761359439726,-4587.57178676,0.00038,5]
[392336958,1761359439736,-20000.0,0.00038,2]
[392336959,1761359439746,-163.21,0.00038033,2]
[392336960,1761359439755,-175.7,0.00038033,2]
[392336961,1761359439765,-168.0,0.00038053,2]
[392336962,1761359439775,-800.0,0.00038082,7]
[392336963,1761359439786,-300.0,0.00038084,2]
[392336964,1761359439796,-7774.9294032,0.0003809,3]
[392336965,1761359439808,-5983.2220534,0.0003809,3]
[392336966,1761359439819,-10767.37719816,0.000381,2]
[392336967,1761359439830,-1523.57246921,0.00038194,2]
[392336968,1761359439839,-1182.6124,0.00038256,2]
[392336969,1761359439849,-233.7833,0.00038256,2]
[392336970,1761359439860,-765.3603973,0.00038288,2]
[392336971,1761359439871,-1396.44,0.00038312,2]
[392336972,1761359439881,-151.0,0.00038343,14]
[392336973,1761359439891,-13758.1514566,0.00038346,3]
[392336974,1761359439899,-752.7063765,0.00038356,2]
[392336975,1761359439909,-949.73,0.00038356,30]
[392336976,1761359439919,-500.0,0.00038356,30]
[392336977,1761359439930,-500.0,0.00038356,30]
[392336978,1761359439939,-500.0,0.00038356,30]
[392336979,1761359439948,-500.0,0.00038356,30]
[392336980,1761359439957,-513.12,0.00038356,30]
[392336981,1761359439965,-272.79371033,0.00038356,30]
[392336982,1761359439974,-500.0,0.00038356,30]
[392336983,1761359439983,-500.0,0.00038356,30]
[392336984,1761359439993,-500.0,0.00038356,30]
[392336985,1761359440001,-500.0,0.00038356,30]
[392336986,1761359440010,-500.0,0.00038356,30]
[392336987,1761359440019,-500.0,0.00038356,30]
[392336988,1761359440028,-659.69,0.00038356,30]
[392336989,1761359440039,-500.0,0.00038356,30]
[392336990,1761359440048,-500.0,0.00038356,30]
[392336991,1761359440057,-500.0,0.00038356,30]
[392336992,1761359440066,-500.0,0.00038356,30]
[392336993,1761359440075,-500.0,0.00038356,30]
[392336994,1761359440086,-500.0,0.00038356,30]
[392336995,1761359440095,-500.0,0.00038356,30]
[392336996,1761359440105,-500.0,0.00038356,30]
[392336997,1761359440114,-500.0,0.00038356,30]
[392336998,1761359440123,-500.0,0.00038356,30]
[392336999,1761359440134,-500.0,0.00038356,30]
[392337000,1761359440144,-285.91476202,0.00038356,30]
[392337001,1761359440152,-500.0,0.00038356,30]
[392337002,1761359440161,-500.0,0.00038356,30]
[392337003,1761359440170,-500.0,0.00038356,30]
[392337004,1761359440180,-500.0,0.00038356,30]
[392337005,1761359440190,-500.0,0.00038356,30]
[392337006,1761359440199,-500.0,0.00038356,30]
[392337007,1761359440207,-369.03689021,0.00038356,30]
[392337008,1761359440216,-500.0,0.00038356,30]
[392337009,1761359440227,-500.0,0.00038356,30]
[392337010,1761359440237,-500.0,0.00038356,30]
[392337011,1761359440247,-27246.37,0.00038356,30]
[392337012,1761359440257,-500.0,0.00038356,30]
[392337013,1761359440265,-500.0,0.00038356,30]
[392337014,1761359440275,-500.0,0.00038356,30]
[392337015,1761359440284,-500.0,0.00038356,30]
[392337016,1761359440293,-500.0,0.00038356,30]
[392337017,1761359440303,-500.0,0.00038356,30]
[392337018,1761359440311,-500.0,0.00038356,30]
[392337019,1761359440320,-864.86,0.00038356,30]
[392337020,1761359440330,-500.0,0.00038356,30]
[392337021,1761359440339,-500.0,0.00038356,30]
[392337022,1761359440348,-500.0,0.00038356,30]
[392337023,1761359440358,-500.0,0.00038356,30]
[392337024,1761359440374,-500.0,0.00038356,30]
[392337025,1761359440384,-500.0,0.00038356,30]
[392337026,1761359440393,-500.0,0.00038356,30]
[392337027,1761359440402,-500.0,0.00038356,30]
[392337028,1761359440410,-500.0,0.00038356,30]
[392337029,1761359440420,-500.0,0.00038356,30]
[392337030,1761359440429,-500.0,0.00038356,30]
[392337031,1761359440438,-500.0,0.00038356,30]
[392337032,1761359440447,-326.29780584,0.00038356,30]
[392337033,1761359440456,-500.0,0.00038356,2]
[392337034,1761359440466,-500.0,0.00038356,30]
[392337035,1761359440475,-500.0,0.00038356,30]
[392337036,1761359440485,-500.0,0.00038356,30]
[392337037,1761359440494,-560.08,0.00038356,30]
[392337038,1761359440503,-500.0,0.00038356,30]
[392337039,1761359440512,-172.8746474,0.00038356,2]
[392337040,1761359440521,-500.0,0.00038356,30]
[392337041,1761359440530,-639.25,0.00038356,30]
[392337042,1761359440539,-500.0,0.00038356,30]
[392337043,1761359440547,-817.71,0.00038356,30]
[392337044,1761359440556,-500.0,0.00038356,30]
[392337045,1761359440565,-500.0,0.00038356,30]
[392337046,1761359440574,-765.3603973,0.00038385,2]
[392337047,1761359440583,-151.0,0.0003842,120]
[392337048,1761359440592,-151.0,0.0003842,120]
[392337049,1761359440601,-151.0,0.0003842,120]
[392337050,1761359440610,-151.0,0.0003842,120]
[392337051,1761359440619,-151.0,0.0003842,120]
[392337052,1761359440629,-151.0,0.0003842,120]
[392337053,1761359440639,-151.0,0.0003842,120]
[392337054,1761359440649,-13758.1514566,0.0003842,3]
[392337055,1761359440659,-892.77690881,0.00038421,5]
[392337056,1761359440667,-1013.86662868,0.00038421,5]
[392337057,1761359440676,-1000.0,0.0003843,2]
[392337058,1761359440684,-500.0,0.00038442,120]
[392337059,1761359440694,-1733.64970752,0.00038486,2]
[392337060,1761359440704,-205.0,0.00038496,2]
[392337061,1761359440714,-2281.49442,0.0003851,2]
[392337062,1761359440725,-13758.1514566,0.0003852,3]
[392337063,1761359440736,-1703.541,0.00038529,30]
[392337064,1761359440747,-33180.8735,0.0003853,2]
[392337065,1761359440758,-31.51520823,0.0003853,2]
[392337066,1761359441009,-500.0,0.00038356,30]
[392337067,1761359441019,-221.39988999,0.0003853,2]
[392337073,1761359442803,-4.63754754,0.00038356,30]
[392337074,1761359442814,-495.36245246,0.00038356,30]
[392337075,1761359442823,-500.0,0.00038356,7]
[392337076,1761359442834,-609.04565341,0.0003853,2]
[392337077,1761359442846,-138.03924837,0.0003853,2]
[392337078,1761359442855,-162.06981313,0.00038552,2]
[392337079,1761359442865,-1523.57246921,0.00038558,2]
[392337080,1761359442874,-201.794378,0.000386,16]
[392337081,1761359442883,-22195.81081934,0.00038609,3]
[392337082,1761359442895,-337.07366847,0.00038609,3]
[392337083,1761359442931,-1194.73480145,0.00038609,3]
[392337084,1761359442943,-263.58446541,0.00038609,3]
[392337085,1761359442956,-931.09196623,0.00038609,3]
[392337086,1761359442989,-2594.0071923,0.00038609,3]
[392337087,1761359442998,-4261.89347997,0.00038609,3]
[392337088,1761359443010,-560.47152291,0.00038609,3]
[392337089,1761359443039,-411.97862576,0.00038609,3]
[392337090,1761359443100,-22281.95928456,0.00038609,3]
[392337091,1761359443110,-9108.31091885,0.00038609,3]
[392337092,1761359443119,-41274.4543698,0.0003861,3]
[392337093,1761359443129,-45541.5545943,0.0003861,3]
[392337094,1761359443140,-151.0,0.0003861,120]
[392337095,1761359443150,-151.0,0.0003861,120]
[392337096,1761359443159,-151.0,0.0003861,120]
[392337097,1761359443169,-151.0,0.0003861,120]
[392337098,1761359443178,-276.507702,0.0003861,120]
[392337099,1761359443187,-157.560013,0.0003861,120]
[392337100,1761359443196,-150.84,0.0003861,2]
[392337101,1761359443205,-365.18380257,0.0003861,2]
[392337103,1761359443214,-151.0,0.0003861,120]
[392337105,1761359443224,-13758.1514566,0.0003861,3]
[392337107,1761359443234,-9108.31091885,0.0003861,3]
[392337109,1761359443243,-500.0,0.00038619,30]
[392337111,1761359443251,-500.0,0.00038619,30]
[392337113,1761359443260,-588.81,0.00038619,30]
[392337114,1761359443269,-500.0,0.00038619,30]
[392337115,1761359443278,-500.0,0.00038619,30]
[392337116,1761359443287,-500.0,0.00038619,30]
[392337117,1761359443296,-555.26,0.00038619,30]
[392337118,1761359443306,-500.0,0.00038619,30]
[392337119,1761359443315,-500.0,0.00038619,30]
[392337120,1761359443324,-500.0,0.00038619,30]
[392337121,1761359443334,-500.0,0.00038619,30]
[392337122,1761359443343,-500.0,0.00038619,30]
[392337123,1761359443352,-500.0,0.00038619,30]
[392337124,1761359443365,-500.0,0.00038619,30]
[392337125,1761359443374,-500.0,0.00038619,30]
[392337126,1761359443383,-500.0,0.00038619,30]
[392337128,1761359443392,-520.02,0.00038619,30]
[392337130,1761359443400,-500.0,0.00038619,30]
[392337132,1761359443410,-500.0,0.00038619,30]
[392337133,1761359443419,-820.8,0.00038619,30]
[392337134,1761359443428,-517.77,0.00038619,30]
[392337135,1761359443437,-1487.78,0.00038619,30]
[392337136,1761359443446,-500.0,0.00038619,30]
[392337137,1761359443455,-500.0,0.00038619,30]
[392337138,1761359443465,-500.0,0.00038619,30]
[392337139,1761359443474,-500.0,0.00038619,30]
[392337140,1761359443483,-500.0,0.00038619,30]
[392337141,1761359443492,-500.0,0.00038619,30]
[392337142,1761359443501,-500.0,0.00038619,30]
[392337143,1761359443510,-601.12,0.00038619,30]
[392337144,1761359443519,-525.04,0.00038619,30]
[392337145,1761359443528,-500.0,0.00038619,30]
[392337146,1761359443537,-502.43,0.00038619,30]
[392337147,1761359443545,-467.71578717,0.00038619,30]
[392337148,1761359443555,-500.0,0.00038619,30]
[392337149,1761359443563,-14847.53,0.00038619,30]
[392337150,1761359443572,-500.0,0.00038619,30]
[392337151,1761359443581,-500.0,0.00038619,30]
[392337152,1761359443590,-500.0,0.00038619,30]
[392337153,1761359443599,-677.29,0.00038619,30]
[392337154,1761359443608,-500.0,0.00038619,30]
[392337155,1761359443617,-500.0,0.00038619,30]
[392337156,1761359443626,-557.94,0.00038619,30]
[392337157,1761359443635,-533.77,0.00038619,30]
[392337158,1761359443644,-543.76,0.00038619,30]
[392337159,1761359443653,-500.0,0.00038619,30]
[392337160,1761359443662,-500.0,0.00038619,30]
[392337161,1761359443671,-2182.83,0.00038619,30]
[392337162,1761359443679,-500.0,0.00038619,30]
[392337163,1761359443688,-151.0,0.00038619,120]
[392337164,1761359443697,-1309.41,0.00038619,30]
[392337165,1761359443706,-761.59,0.00038619,30]
[392337166,1761359443715,-68790.7572829,0.00038619,3]
[392337167,1761359443724,-63758.176432,0.00038619,3]
[392337168,1761359443733,-500.0,0.0003862,30]
[392337169,1761359443742,-500.0,0.0003862,30]
[392337170,1761359443752,-500.0,0.0003862,30]
[392337171,1761359443761,-500.0,0.0003862,30]
[392337172,1761359443773,-500.0,0.0003862,30]
[392337173,1761359443785,-500.0,0.0003862,30]
[392337174,1761359443797,-243.44903364,0.0003862,30]
[392337175,1761359443806,-500.0,0.0003862,30]
[392337176,1761359443816,-500.0,0.0003862,30]
[392337177,1761359443827,-500.0,0.0003862,30]
[392337178,1761359443837,-500.0,0.0003862,30]
[392337179,1761359443847,-500.0,0.0003862,30]
[392337180,1761359443857,-501.19100597,0.0003862,30]
[392337181,1761359443868,-500.0,0.0003862,30]
[392337182,1761359443878,-500.0,0.0003862,30]
[392337183,1761359443887,-500.0,0.0003862,30]
[392337184,1761359443896,-500.0,0.0003862,30]
[392337185,1761359443905,-500.0,0.0003862,30]
[392337186,1761359443914,-512.17,0.0003862,30]
[392337187,1761359443923,-600.0,0.0003862,30]
[392337188,1761359443932,-500.0,0.0003862,30]
[392337189,1761359443941,-500.0,0.0003862,30]
[392337190,1761359443950,-600.0,0.0003862,30]
[392337191,1761359443959,-500.0,0.0003862,30]
[392337192,1761359443968,-500.0,0.0003862,30]
[392337193,1761359443978,-500.0,0.0003862,30]
[392337194,1761359443987,-500.0,0.0003862,30]
[392337195,1761359443998,-500.0,0.0003862,30]
[392337196,1761359444008,-500.0,0.0003862,30]
[392337197,1761359444018,-500.0,0.0003862,30]
[392337198,1761359444028,-531.43,0.0003862,30]
[392337199,1761359444037,-569.832955,0.0003862,30]
[392337200,1761359444046,-151.667609,0.0003862,30]
[392337201,1761359444055,-185.681048,0.0003862,30]
[392337202,1761359444064,-152.637139,0.0003862,30]
[392337203,1761359444073,-500.0,0.0003862,30]
[392337204,1761359444082,-904.934214,0.0003862,30]
[392337205,1761359444091,-500.0,0.0003862,30]
[392337206,1761359444100,-500.0,0.0003862,30]
[392337207,1761359444109,-500.0,0.0003862,30]
[392337208,1761359444119,-500.0,0.0003862,30]
[392337209,1761359444128,-500.0,0.0003862,30]
[392337210,1761359444137,-500.0,0.0003862,30]
[392337211,1761359444254,-502.11,0.0003862,30]
[392337212,1761359444263,-501.22522122,0.0003862,30]
[392337213,1761359444273,-239.57593662,0.0003862,30]
[392337214,1761359444282,-545.7,0.0003862,30]
[392337215,1761359444291,-500.0,0.0003862,30]
[392337216,1761359444300,-500.0,0.0003862,30]
[392337217,1761359444309,-500.0,0.0003862,30]
[392337218,1761359444319,-500.0,0.0003862,90]
[392337219,1761359444329,-500.0,0.0003862,30]
[392337220,1761359444338,-500.0,0.0003862,30]
[392337221,1761359444349,-500.0,0.0003862,30]
[392337222,1761359444362,-500.0,0.0003862,30]
[392337223,1761359444377,-500.0,0.0003862,30]
[392337224,1761359444387,-500.0,0.0003862,30]
[392337225,1761359444397,-500.0,0.0003862,30]
[392337226,1761359444406,-500.0,0.0003862,30]
[392337227,1761359444419,-500.0,0.0003862,30]
[392337228,1761359444428,-500.0,0.0003862,30]
[392337229,1761359444437,-500.0,0.0003862,30]
[392337230,1761359444446,-587.22057977,0.0003862,30]
[392337231,1761359444455,-539.7,0.0003862,30]
[392337232,1761359444464,-500.0,0.0003862,30]
[392337233,1761359444473,-500.0,0.0003862,30]
[392337234,1761359444483,-500.0,0.0003862,2]
[392337235,1761359444491,-500.0,0.0003862,30]
[392337236,1761359444501,-500.0,0.0003862,30]
[392337237,1761359444512,-652.03,0.0003862,30]
[392337238,1761359444523,-500.0,0.0003862,30]
[392337239,1761359444535,-500.0,0.0003862,30]
[392337240,1761359444546,-501.81266505,0.0003862,30]
[392337241,1761359444556,-500.0,0.0003862,30]
[392337242,1761359444566,-500.0,0.0003862,30]
[392337243,1761359444575,-500.0,0.0003862,30]
[392337244,1761359444585,-500.0,0.0003862,30]
[392337245,1761359444593,-500.0,0.0003862,30]
[392337246,1761359444602,-2455.88,0.0003862,2]
[392337247,1761359444611,-1544.91,0.0003862,30]
[392337248,1761359444619,-593.95,0.0003862,30]
[392337249,1761359444628,-500.0,0.0003862,30]
[392337250,1761359444637,-500.0,0.0003862,30]
[392337251,1761359444646,-500.0,0.0003862,30]
[392337252,1761359444654,-300.0,0.0003862,2]
[392337253,1761359444663,-500.0,0.0003862,30]
[392337254,1761359444681,-500.0,0.0003862,30]
[392337255,1761359444691,-500.0,0.0003862,30]
[392337256,1761359444700,-500.0,0.0003862,30]
[392337257,1761359444709,-500.0,0.0003862,30]
[392337258,1761359444719,-516.79,0.0003862,30]
[392337259,1761359444728,-564.12,0.0003862,30]
[392337260,1761359444737,-500.0,0.0003862,30]
[392337261,1761359444746,-548.72,0.0003862,30]
[392337262,1761359444756,-500.0,0.0003862,30]
[392337263,1761359444766,-500.0,0.0003862,30]
[392337264,1761359444776,-500.0,0.0003862,30]
[392337265,1761359444785,-500.0,0.0003862,30]
[392337266,1761359444794,-500.0,0.0003862,30]
[392337267,1761359444804,-525.86,0.0003862,30]
[392337268,1761359444814,-500.0,0.0003862,30]
[392337269,1761359444823,-443.09842587,0.0003862,2]
[392337270,1761359444841,-56.90157413,0.0003862,2]
[392337271,1761359444851,-500.0,0.0003862,30]
[392337272,1761359444861,-500.0,0.0003862,30]
[392337273,1761359444871,-329.05571053,0.0003862,30]
[392337274,1761359444880,-500.0,0.0003862,30]
[392337275,1761359444890,-500.0,0.0003862,30]
[392337276,1761359444899,-500.0,0.0003862,30]
[392337277,1761359444909,-300.0,0.0003862,2]
[392337278,1761359444920,-500.0,0.0003862,30]
[392337279,1761359444930,-359.44092558,0.0003862,30]
[392337280,1761359444944,-140.55907442,0.0003862,30]
[392337281,1761359444954,-151.361882,0.0003862,30]
[392337282,1761359444965,-500.0,0.0003862,30]
[392337283,1761359444974,-323.97907752,0.0003862,30]
[392337284,1761359444995,-176.02092248,0.0003862,30]
[392337285,1761359445006,-500.0,0.0003862,30]
[392337286,1761359445018,-259.66320237,0.0003862,30]
[392337287,1761359898336,2080.65,0.00036701,60]
[392337288,1761360008292,280.011868,7.945e-05,2]
[392337304,1761360631792,-240.14,0.00017871,2]
[392337305,1761360631802,-240.14,0.00018811,2]
[392337306,1761360631812,-240.14,0.00019752,2]
[392337307,1761360631821,-240.14,0.00020692,2]
[392337308,1761360631830,-240.14,0.00021633,2]
[392337309,1761360631839,-240.14,0.00022574,2]
[392337310,1761360631848,-240.14,0.00023514,2]
[392337311,1761360631858,-240.14,0.00024455,2]
[392337312,1761360631867,-191.92238648,0.00025395,2]
[392337313,1761360631877,-48.21761352,0.00025395,2]
[392337314,1761360632120,-240.14,0.00026336,2]
[392337315,1761360632130,-240.14,0.00027276,2]
[392337316,1761360632140,-191.16,0.00027865,2]
[392337317,1761360632149,-302.75,0.00027865,2]
[392337318,1761360632159,-240.14,0.00028217,2]
[392337319,1761360632168,-240.14,0.00029158,2]
[392337320,1761360632179,-240.14,0.00030098,2]
[392337321,1761360632189,-4330.0,0.000303,2]
[392337322,1761360632198,-162.06981313,0.0003082,2]
[392337323,1761360632208,-571.28919687,0.00030958,2]
[392337324,1761360632217,-240.14,0.00031039,2]
[392337325,1761360632227,-5514.0,0.000311,3]
[392337326,1761360632236,-400.0,0.00031399,2]
[392337327,1761360632245,-305.55524937,0.00031425,2]
[392337329,1761360632254,-218.35458728,0.00031425,2]
[392337330,1761360632263,-5243.06864695,0.00031426,2]
[392337342,1761360632591,-551.39921653,0.00031426,2]
[392337343,1761360632661,-761.49213652,0.00031426,2]
[392337344,1761360632670,-14604.98,0.00031426,2]
[392337345,1761360632680,-1937.18,0.00031426,2]
[392337346,1761360632689,-1586.3,0.00031426,2]
[392337347,1761360632698,-9999.99,0.00031426,2]
[392337348,1761360632707,-150.99,0.00031426,2]
[392337349,1761360632717,-5514.0,0.000319,5]
[392337350,1761360632726,-240.14,0.00031979,2]
[392337351,1761360632735,-166.66,0.00032196,30]
[392337352,1761360632744,-166.66,0.00032874,30]
[392337353,1761360632753,-240.14,0.0003292,2]
[392337354,1761360632763,-1841.73,0.00033098,2]
[392337355,1761360632774,-166.66,0.00033552,30]
[392337356,1761360632784,-181.94,0.00033594,2]
[392337357,1761360632793,-240.14,0.00033861,2]
[392337358,1761360632802,-166.66,0.00033873,2]
[392337359,1761360632813,-166.66,0.0003423,30]
[392337360,1761360632822,-240.14,0.00034801,2]
[392337361,1761360632832,-152.0,0.0003482,3]
[392337362,1761360632843,-166.66,0.00034908,30]
[392337363,1761360632856,-407.0,0.00034986,2]
[392337364,1761360632865,-166.66,0.00035271,2]
[392337365,1761360632876,-151.0,0.00035466,2]
[392337366,1761360632886,-151.0,0.00035466,2]
[392337367,1761360632895,-151.0,0.00035466,2]
[392337368,1761360632905,-151.0,0.00035466,2]
[392337369,1761360632915,-151.0,0.00035466,2]
[392337370,1761360632924,-151.0,0.00035466,2]
[392337371,1761360632934,-151.0,0.00035466,2]
[392337372,1761360632943,-151.0,0.00035466,2]
[392337373,1761360632953,-151.0,0.00035466,2]
[392337374,1761360632962,-151.0,0.00035466,2]
[392337375,1761360632973,-151.0,0.00035466,2]
[392337376,1761360632983,-151.0,0.00035466,2]
[392337377,1761360632992,-151.0,0.00035466,2]
[392337378,1761360633002,-151.0,0.00035466,2]
[392337379,1761360633012,-151.0,0.00035466,2]
[392337380,1761360633021,-151.0,0.00035466,2]
[392337381,1761360633031,-151.0,0.00035466,2]
[392337382,1761360633040,-151.0,0.00035466,2]
[392337383,1761360633050,-151.0,0.00035466,2]
[392337384,1761360633060,-277.18933947,0.00035466,2]
[392337385,1761360633070,-151.0,0.00035466,2]
[392337386,1761360633079,-382.415,0.00035487,42]
[392337387,1761360633089,-1009.0,0.00035487,120]
[392337388,1761360633098,-166.66,0.00035586,30]
[392337389,1761360633108,-1009.0,0.00035671,120]
[392337390,1761360633118,-240.14,0.00035742,2]
[392337391,1761360633127,-1145.99403031,0.0003579,2]
[392337392,1761360633137,-3538.7,0.00035833,2]
[392337393,1761360633147,-200.0,0.0003611,2]
[392337394,1761360633156,-476.4830027,0.00036141,2]
[392337395,1761360633166,-2433.23,0.00036295,2]
[392337396,1761360633176,-1009.0,0.00036449,2]
[392337397,1761360633186,-194.49,0.00036475,2]
[392337398,1761360633196,-2341.73232893,0.00036486,2]
[392337399,1761360633206,-500.0,0.00036598,30]
[392337400,1761360633215,-1009.0,0.00036629,2]
[392337401,1761360633228,-150.0,0.00036649,15]
[392337402,1761360633238,-1000.0,0.0003665,2]
[392337403,1761360633248,-31433.5457,0.0003665,2]
[392337404,1761360633257,-217.05457166,0.0003665,2]
[392337405,1761360633267,-166.66,0.00036668,2]
[392337406,1761360633276,-946.31318,0.000367,22]
[392337407,1761360633285,-35740.04,0.00036701,7]
[392337408,1761360633295,-203.08352609,0.00036712,2]
[392337409,1761360633304,-152.0,0.00036797,4]
[392337410,1761360633314,-572.0,0.00036889,2]
[392337411,1761360633324,-3414.0,0.00036889,2]
[392337412,1761360633334,-819.0,0.00036889,2]
[392337413,1761360633344,-2054.0,0.00036889,2]
[392337414,1761360633353,-1592.0,0.00036889,2]
[392337415,1761360633363,-606.0,0.00036889,2]
[392337416,1761360633373,-1312.0,0.00036889,2]
[392337417,1761360633383,-903.0,0.00036889,2]
[392337418,1761360633392,-1185.0,0.00036889,2]
[392337419,1761360633401,-1270.0,0.00036889,2]
[392337420,1761360633411,-818.0,0.00036889,2]
[392337421,1761360633420,-155.379,0.00036889,2]
[392337422,1761360633430,-3488.0,0.00036889,2]
[392337423,1761360633439,-6541.0,0.00036889,2]
[392337424,1761360633450,-558.0,0.00036889,2]
[392337425,1761360633459,-153.77949303,0.00036952,2]
[392337426,1761360633468,-150.0,0.00036952,2]
[392337427,1761360633478,-160.94743088,0.00036952,2]
[392337428,1761360633487,-729.71217131,0.00037,2]
[392337429,1761360633499,-1009.0,0.00037223,7]
[392337430,1761360633508,-500.0,0.0003726,7]
[392337431,1761360633518,-500.0,0.0003726,7]
[392337432,1761360633527,-600.0,0.0003726,7]
[392337433,1761360633536,-1009.0,0.00037336,7]
[392337434,1761360633546,-500.0,0.00037429,30]
[392337435,1761360633556,-500.0,0.00037429,30]
[392337436,1761360633567,-1009.0,0.00037477,2]
[392337437,1761360633577,-1000.0,0.000375,2]
[392337438,1761360633586,-500.0,0.00037611,30]
[392337439,1761360633597,-1000.0,0.00037681,2]
[392337440,1761360633610,-1000.0,0.00037799,2]
[392337441,1761360633620,-513.48690694,0.00037899,30]
[392337442,1761360633634,-509.95506856,0.00037899,30]
[392337443,1761360633644,-500.0,0.000379,30]
[392337444,1761360633653,-843.90762502,0.00037978,2]
[392337445,1761360633664,-221.26707169,0.00038,2]
[392337446,1761360633678,-5083.69193611,0.00038,2]
[392337447,1761360633688,-1000.0,0.00038,7]
[392337448,1761360633697,-150.0,0.00038009,7]
[392337449,1761360633708,-375.0,0.00038009,7]
[392337450,1761360633718,-166.66,0.00038066,2]
[392337451,1761360633728,-600.0,0.00038082,7]
[392337452,1761360633738,-716.95548084,0.00038131,30]
[392337453,1761360633748,-2500.0,0.0003814,2]
[392337454,1761360633761,-375.0,0.00038146,7]
[392337455,1761360633778,-500.0,0.00038239,2]
[392337456,1761360633788,-9445.77221783,0.0003824,2]
[392337457,1761360633800,-4264.37020006,0.0003824,2]
[392337458,1761360633812,-9374.80176802,0.0003824,2]
[392337459,1761360633829,-10785.07447433,0.0003824,2]
[392337460,1761360633842,-23.84976551,0.0003824,2]
[392337461,1761360633852,-500.0,0.00038254,7]
[392337462,1761360633861,-500.0,0.00038254,30]
[392337463,1761360633871,-500.0,0.00038254,2]
[392337464,1761360633881,-912.63289642,0.00038255,10]
[392337465,1761360633891,-1467.69736147,0.00038255,2]
[392337466,1761360633901,-500.29764729,0.00038255,2]
[392337467,1761360633911,-195.07,0.000383,12]
[392337468,1761360633921,-843.90762502,0.00038301,2]
[392337469,1761360633931,-148620.994514,0.00038346,3]
[392337470,1761360633941,-500.0,0.00038355,30]
[392337471,1761360633950,-500.0,0.00038355,2]
[392337472,1761360633960,-500.0,0.00038355,2]
[392337473,1761360633970,-500.0,0.00038355,2]
[392337474,1761360633980,-500.0,0.00038356,30]
[392337475,1761360633989,-500.0,0.00038356,30]
[392337476,1761360633999,-500.0,0.00038356,30]
[392337477,1761360634009,-500.0,0.00038356,30]
[392337478,1761360634022,-500.0,0.00038356,30]
[392337479,1761360634031,-466.23037864,0.00038356,30]
[392337480,1761360634041,-500.0,0.00038356,30]
[392337481,1761360634050,-500.0,0.00038356,30]
[392337482,1761360634059,-500.0,0.00038356,30]
[392337483,1761360634069,-500.0,0.00038356,30]
[392337484,1761360634079,-500.0,0.00038356,30]
[392337485,1761360634088,-613.38,0.00038356,30]
[392337486,1761360634097,-500.0,0.00038356,30]
[392337487,1761360634106,-230.02954264,0.00038356,30]
[392337488,1761360634115,-500.0,0.00038356,30]
[392337489,1761360634125,-500.0,0.00038356,30]
[392337490,1761360634134,-500.0,0.00038356,30]
[392337491,1761360634144,-500.0,0.00038356,30]
[392337492,1761360634153,-500.0,0.00038356,30]
[392337493,1761360634162,-500.0,0.00038356,30]